Workbook

Sheet паспорт
A1: ПАТ "УКРТРАНСГАЗ" | G1: ПАСПОРТ ФІЗИКО-ХІМІЧНИХ ПОКАЗНИКІВ ПРИРОДНОГО ГАЗУ № 652
A2: Філія "УМГ "ХАРКІВТРАНСГАЗ" | G2: переданого Сєвєродонецьким ЛВУМГ та прийнятого ПАТ "Луганськгаз"
A3: Сєвєродонецьке ЛВУМГ | G3: Маршрут № 652
A4: Вимірювальна хіміко-аналітична лабораторія
A5: Свідоцтво № РЬ089/2014 чинно до 06.06.2017 р. | K5: по газопроводу "Луганськ-Лисичанськ" | V5: за період з | X5: 01.03.2017 р. | Z5: по | AA5: 31.03.2017 р.
A7: Число місяця | B7: Компонентний склад, мол. % | N7: Фізико-хімічні показники газу обчислені на основі компонентного складу, 101,325 кПа | X7: Температура точки роси за вологою (Р = 3.92 МПа), °С | Y7: Температура точки роси за вуглеводнями, °С | Z7: Вміст сірководню, г/м3 | AA7: Вміст меркаптанової сірки, г/м3 | AB7: Вміст механічних домішок, г/м3
N8: Густина абсолютна, кг/м3,при 20 °С, | O8: Температура вимірювання/згоряння при 20/25°С
B9: метан, С1 | C9: етан, С2 | D9: пропан, С3 | E9: ізо-бутан, і-С4 | F9: н-бутан, н-С4 | G9: нео-пентан, нео-С5 | H9: ізо-пентан, і-С5 | I9: н-пентан, н-С5 | J9: гексани та вищі, С6+ | K9: кисень, О2 | L9: азот, N2 | M9: діоксид вуглецю, CО2 | O9: Теплота згоряння нижча | R9: Теплота згоряння вища | U9: Число Воббе вище
O10: ккал/м³ | P10: МДж/м³ | Q10: кВт⋅год/м³ | R10: ккал/м³ | S10: МДж/м³ | T10: кВт⋅год/м³ | U10: ккал/м³ | V10: МДж/м³ | W10: кВт⋅год/м³
A11: 1 | O11: =P11*238.8459 -> 8144.477998 | P11: 34.0993 | Q11: =P11/3.6 -> 9.472027778 | R11: =S11*238.8459 -> 9019.036145 | S11: 37.7609 | T11: =S11/3.6 -> 10.48913889 | U11: =V11/0.0041868 -> 11488.96532 | V11: 48.102 | W11: =V11/3.6 -> 13.36166667 | AC11: =SUM(B11:M11)+$K$42+$N$42 -> 0
A12: 2 | O12: 8144.477998 | P12: 34.0993 | Q12: 9.472027778 | R12: 9019.036145 | S12: 37.7609 | T12: 10.48913889 | U12: 11488.96532 | V12: 48.102 | W12: 13.36166667 | AC12: 0
A13: 3 | B13: 91.1432 | C13: 3.423 | D13: 1.114 | E13: 0.143 | F13: 0.2491 | G13: 0.0052 | H13: 0.0664 | I13: 0.0543 | J13: 0.114 | K13: 0.0089 | L13: 2.6564 | M13: 1.0225 | N13: 0.7398 | O13: =P13*238.8459 -> 8180.806459 | P13: 34.2514 | Q13: =P13/3.6 -> 9.514277778 | R13: =S13*238.8459 -> 9059.090603 | S13: 37.9286 | T13: =S13/3.6 -> 10.53572222 | U13: =V13/0.0041868 -> 11559.2099 | V13: 48.3961 | W13: =V13/3.6 -> 13.44336111 | AC13: 100 | AD13: =IF(AC13=100,"ОК"," ") -> ОК
A14: 4 | O14: =P14*238.8459 -> 8180.806459 | P14: 34.2514 | Q14: =P14/3.6 -> 9.514277778 | R14: =S14*238.8459 -> 9059.090603 | S14: 37.9286 | T14: =S14/3.6 -> 10.53572222 | U14: =V14/0.0041868 -> 11559.2099 | V14: 48.3961 | W14: =V14/3.6 -> 13.44336111 | AC14: 0 | AD14: =IF(AC14=100,"ОК"," ") -> 
A15: 5 | O15: 8180.806459 | P15: 34.2514 | Q15: 9.514277778 | R15: 9059.090603 | S15: 37.9286 | T15: 10.53572222 | U15: 11559.2099 | V15: 48.3961 | W15: 13.44336111 | AC15: 0
A16: 6 | O16: 8180.806459 | P16: 34.2514 | Q16: 9.514277778 | R16: 9059.090603 | S16: 37.9286 | T16: 10.53572222 | U16: 11559.2099 | V16: 48.3961 | W16: 13.44336111 | AC16: 0
A17: 7 | O17: 8180.806459 | P17: 34.2514 | Q17: 9.514277778 | R17: 9059.090603 | S17: 37.9286 | T17: 10.53572222 | U17: 11559.2099 | V17: 48.3961 | W17: 13.44336111 | AC17: 0
A18: 8 | O18: 8180.806459 | P18: 34.2514 | Q18: 9.514277778 | R18: 9059.090603 | S18: 37.9286 | T18: 10.53572222 | U18: 11559.2099 | V18: 48.3961 | W18: 13.44336111 | AC18: 0
A19: 9 | O19: 8180.806459 | P19: 34.2514 | Q19: 9.514277778 | R19: 9059.090603 | S19: 37.9286 | T19: 10.53572222 | U19: 11559.2099 | V19: 48.3961 | W19: 13.44336111 | AC19: 0
A20: 10 | O20: 8180.806459 | P20: 34.2514 | Q20: 9.514277778 | R20: 9059.090603 | S20: 37.9286 | T20: 10.53572222 | U20: 11559.2099 | V20: 48.3961 | W20: 13.44336111 | AC20: 0
A21: 11 | O21: 8180.806459 | P21: 34.2514 | Q21: 9.514277778 | R21: 9059.090603 | S21: 37.9286 | T21: 10.53572222 | U21: 11559.2099 | V21: 48.3961 | W21: 13.44336111 | AC21: 0
A22: 12 | O22: 8180.806459 | P22: 34.2514 | Q22: 9.514277778 | R22: 9059.090603 | S22: 37.9286 | T22: 10.53572222 | U22: 11559.2099 | V22: 48.3961 | W22: 13.44336111 | AC22: 0
A23: 13 | O23: 8180.806459 | P23: 34.2514 | Q23: 9.514277778 | R23: 9059.090603 | S23: 37.9286 | T23: 10.53572222 | U23: 11559.2099 | V23: 48.3961 | W23: 13.44336111 | AC23: 0
A24: 14 | B24: 91.2522 | C24: 3.3603 | D24: 1.1126 | E24: 0.1469 | F24: 0.2591 | G24: 0.0061 | H24: 0.0672 | I24: 0.0591 | J24: 0.1053 | K24: 0.0101 | L24: 2.7863 | M24: 0.8348 | N24: 0.738 | O24: =P24*238.8459 -> 8182.669457 | P24: 34.2592 | Q24: =P24/3.6 -> 9.516444444 | R24: =S24*238.8459 -> 9061.240216 | S24: 37.9376 | T24: =S24/3.6 -> 10.53822222 | U24: =V24/0.0041868 -> 11575.90523 | V24: 48.466 | W24: =V24/3.6 -> 13.46277778 | X24: -2.8 | Y24: -5.1 | Z24: 0.0004 | AA24: 0.002 | AB24: відс | AC24: 100 | AD24: ОК
A25: 15 | O25: =P25*238.8459 -> 8182.669457 | P25: 34.2592 | Q25: =P25/3.6 -> 9.516444444 | R25: =S25*238.8459 -> 9061.240216 | S25: 37.9376 | T25: =S25/3.6 -> 10.53822222 | U25: =V25/0.0041868 -> 11575.90523 | V25: 48.466 | W25: =V25/3.6 -> 13.46277778 | AC25: 0
A26: 16 | O26: 8182.669457 | P26: 34.2592 | Q26: 9.516444444 | R26: 9061.240216 | S26: 37.9376 | T26: 10.53822222 | U26: 11575.90523 | V26: 48.466 | W26: 13.46277778 | AC26: 0
A27: 17 | O27: 8182.669457 | P27: 34.2592 | Q27: 9.516444444 | R27: 9061.240216 | S27: 37.9376 | T27: 10.53822222 | U27: 11575.90523 | V27: 48.466 | W27: 13.46277778 | AC27: 0
A28: 18 | O28: 8182.669457 | P28: 34.2592 | Q28: 9.516444444 | R28: 9061.240216 | S28: 37.9376 | T28: 10.53822222 | U28: 11575.90523 | V28: 48.466 | W28: 13.46277778 | AC28: 0
A29: 19 | O29: 8182.669457 | P29: 34.2592 | Q29: 9.516444444 | R29: 9061.240216 | S29: 37.9376 | T29: 10.53822222 | U29: 11575.90523 | V29: 48.466 | W29: 13.46277778 | AC29: 0
A30: 20 | O30: 8182.669457 | P30: 34.2592 | Q30: 9.516444444 | R30: 9061.240216 | S30: 37.9376 | T30: 10.53822222 | U30: 11575.90523 | V30: 48.466 | W30: 13.46277778 | AC30: 0 | AD30: =IF(AC30=100,"ОК"," ") -> 
A31: 21 | O31: 8182.669457 | P31: 34.2592 | Q31: 9.516444444 | R31: 9061.240216 | S31: 37.9376 | T31: 10.53822222 | U31: 11575.90523 | V31: 48.466 | W31: 13.46277778 | AC31: 0
A32: 22 | O32: 8182.669457 | P32: 34.2592 | Q32: 9.516444444 | R32: 9061.240216 | S32: 37.9376 | T32: 10.53822222 | U32: 11575.90523 | V32: 48.466 | W32: 13.46277778 | AC32: 0
A33: 23 | O33: 8182.669457 | P33: 34.2592 | Q33: 9.516444444 | R33: 9061.240216 | S33: 37.9376 | T33: 10.53822222 | U33: 11575.90523 | V33: 48.466 | W33: 13.46277778 | AC33: 0 | AD33: =IF(AC33=100,"ОК"," ") -> 
A34: 24 | O34: 8182.669457 | P34: 34.2592 | Q34: 9.516444444 | R34: 9061.240216 | S34: 37.9376 | T34: 10.53822222 | U34: 11575.90523 | V34: 48.466 | W34: 13.46277778 | AC34: 0
A35: 25 | O35: 8182.669457 | P35: 34.2592 | Q35: 9.516444444 | R35: 9061.240216 | S35: 37.9376 | T35: 10.53822222 | U35: 11575.90523 | V35: 48.466 | W35: 13.46277778 | AC35: 0
A36: 26 | O36: 8182.669457 | P36: 34.2592 | Q36: 9.516444444 | R36: 9061.240216 | S36: 37.9376 | T36: 10.53822222 | U36: 11575.90523 | V36: 48.466 | W36: 13.46277778 | AC36: 0
A37: 27 | O37: 8182.669457 | P37: 34.2592 | Q37: 9.516444444 | R37: 9061.240216 | S37: 37.9376 | T37: 10.53822222 | U37: 11575.90523 | V37: 48.466 | W37: 13.46277778 | AC37: 0
A38: 28 | O38: 8182.669457 | P38: 34.2592 | Q38: 9.516444444 | R38: 9061.240216 | S38: 37.9376 | T38: 10.53822222 | U38: 11575.90523 | V38: 48.466 | W38: 13.46277778 | AC38: 0
A39: 29 | O39: 8182.669457 | P39: 34.2592 | Q39: 9.516444444 | R39: 9061.240216 | S39: 37.9376 | T39: 10.53822222 | U39: 11575.90523 | V39: 48.466 | W39: 13.46277778 | AC39: 0
A40: 30 | O40: 8182.669457 | P40: 34.2592 | Q40: 9.516444444 | R40: 9061.240216 | S40: 37.9376 | T40: 10.53822222 | U40: 11575.90523 | V40: 48.466 | W40: 13.46277778 | AC40: 0
A41: 31 | O41: 8182.669457 | P41: 34.2592 | Q41: 9.516444444 | R41: 9061.240216 | S41: 37.9376 | T41: 10.53822222 | U41: 11575.90523 | V41: 48.466 | W41: 13.46277778 | AC41: 0
A42: Рівень одоризації відповідає чинним нормативним документам | O42: =SUMPRODUCT(O11:O41,' розрахунок'!F7:F37)/' розрахунок'!F38 -> 8179.278301 | P42: =SUMPRODUCT(P11:P41,' розрахунок'!F7:F37)/' розрахунок'!F38 -> 34.24500191 | Q42: =SUMPRODUCT(Q11:Q41,' розрахунок'!F7:F37)/' розрахунок'!F38 -> 9.51250053 | R42: =SUMPRODUCT(R11:R41,' розрахунок'!F7:F37)/' розрахунок'!F38 -> 9057.460319 | S42: =SUMPRODUCT(S11:S41,' розрахунок'!F7:F37)/' розрахунок'!F38 -> 37.92177433 | T42: =SUMPRODUCT(T11:T41,' розрахунок'!F7:F37)/' розрахунок'!F38 -> 10.5338262
H43: Середньозважене значення теплоти згоряння:
B46: Начальник управління Сєвєродонецького ЛВУМГ Головко Ю.О.
C47: Підрозділу підприємства, якому підпорядкована лабораторія | O47: прізвище | R47: підпис | V47: дата
B48: Інженер ІІ кат.вимірювальної хіміко-аналітичної лабораторії Єрьоменко М.О.
C49: Лабораторія, де здійснювалось вимірювання газу | O49: прізвище | R49: підпис | V49: дата
B50: Начальник служби метрології Ісаєв В.С.
C51: Підрозділу, відповідального за облік газу за маршрутом | O51: прізвище | R51: підпис | V51: дата

Sheet розрахунок (hidden)
A2: Додаток до Паспорту фізико-хімічних показників природного газу по маршруту № 652
A4: Число місяця | B4: Теплота згоряння вища, МДж/м3 | C4: Луганська область | F4: Загальний обсяг газу, м3
C5: Обсяг газу переданого за добу, м3
C6: ГРС м.Попасна | D6: ГРС смт. Золоте | E6: ГРС с.Мирна Долина
A7: 1 | B7: 37.7609 | C7: 56062.21 | D7: 22358.97 | E7: 6084.46 | F7: =SUM(C7:E7) -> 84505.64
A8: 2 | B8: 37.7609 | C8: 54297.38 | D8: 21907.24 | E8: 5849.65 | F8: 82054.27
A9: 3 | B9: 37.9286 | C9: 51866.26 | D9: 22689.66 | E9: 5753.65 | F9: 80309.57
A10: 4 | B10: 37.9286 | C10: 46042.44 | D10: 21037.25 | E10: 5363.32 | F10: 72443.01
A11: 5 | B11: 37.9286 | C11: 46456.19 | D11: 20411.79 | E11: 5430.92 | F11: 72298.9
A12: 6 | B12: 37.9286 | C12: 48245.84 | D12: 19866.69 | E12: 4997.43 | F12: 73109.96
A13: 7 | B13: 37.9286 | C13: 48392.16 | D13: 22890.91 | E13: 5409.16 | F13: 76692.23
A14: 8 | B14: 37.9286 | C14: 46889.16 | D14: 22238.82 | E14: 5784.41 | F14: 74912.39
A15: 9 | B15: 37.9286 | C15: 51530.98 | D15: 21687.67 | E15: 5298.19 | F15: 78516.84
A16: 10 | B16: 37.9286 | C16: 47756.11 | D16: 20281.36 | E16: 5244.45 | F16: 73281.92
A17: 11 | B17: 37.9286 | C17: 46523.6 | D17: 21402.47 | E17: 5327.1 | F17: 73253.17
A18: 12 | B18: 37.9286 | C18: 48062.23 | D18: 21472.91 | E18: 5608.95 | F18: 75144.09
A19: 13 | B19: 37.9286 | C19: 54281.46 | D19: 22950.94 | E19: 5947.02 | F19: 83179.42
A20: 14 | B20: 37.9376 | C20: 54933.75 | D20: 22122.05 | E20: 5722.17 | F20: 82777.97
A21: 15 | B21: 37.9376 | C21: 50460.25 | D21: 19823.74 | E21: 5220.45 | F21: 75504.44
A22: 16 | B22: 37.9376 | C22: 50599.48 | D22: 20297.15 | E22: 5132.83 | F22: 76029.46
A23: 17 | B23: 37.9376 | C23: 49216.96 | D23: 21227.81 | E23: 5130.17 | F23: 75574.94
A24: 18 | B24: 37.9376 | C24: 47836.13 | D24: 21157.47 | E24: 5544.77 | F24: 74538.37
A25: 19 | B25: 37.9376 | C25: 50388.34 | D25: 22483.55 | E25: 5961.27 | F25: 78833.16
A26: 20 | B26: 37.9376 | C26: 52790.22 | D26: 22555.57 | E26: 5664.14 | F26: 81009.93
A27: 21 | B27: 37.9376 | C27: 51798.48 | D27: 21618.4 | E27: 5549.34 | F27: 78966.22
A28: 22 | B28: 37.9376 | C28: 48467.8 | D28: 19708.56 | E28: 5177.48 | F28: 73353.84
A29: 23 | B29: 37.9376 | C29: 40956.51 | D29: 16809.35 | E29: 4182.67 | F29: 61948.53
A30: 24 | B30: 37.9376 | C30: 40267.04 | D30: 16548.07 | E30: 4278.72 | F30: 61093.83
A31: 25 | B31: 37.9376 | C31: 40615.01 | D31: 19156.12 | E31: 4588.22 | F31: 64359.35
A32: 26 | B32: 37.9376 | C32: 41992.83 | D32: 20426.72 | E32: 4923.37 | F32: 67342.92
A33: 27 | B33: 37.9376 | C33: 52873.05 | D33: 23173.79 | E33: 5833.89 | F33: 81880.73
A34: 28 | B34: 37.9376 | C34: 52713.55 | D34: 21311.51 | E34: 5704.08 | F34: 79729.14
A35: 29 | B35: 37.9376 | C35: 49615.21 | D35: 19108.22 | E35: 5121.16 | F35: =SUM(C35:D35:E35) -> 73844.59
A36: 30 | B36: 37.9376 | C36: 50807.96 | D36: 20851.15 | E36: 5358.09 | F36: =SUM(C36:D36:E36) -> 77017.2
A37: 31 | B37: 37.9376 | C37: 48837.86 | D37: 15884.97 | E37: 5284.16 | F37: =C37+D37+E37 -> 70006.99
A38: Загальний обсяг газу, м3 | C38: =SUM(C7:C37) -> 1521576.45 | D38: =SUM(D7:D37) -> 645460.88 | E38: =SUM(E7:E37) -> 166475.69 | F38: =SUM(F7:F37) -> 2333513.02
A39: Енергія, МДж | C39: =SUMPRODUCT(B7:B37,C7:C37) -> 57700633.77 | D39: =SUMPRODUCT(B7:B37,D7:D37) -> 24477282.47 | E39: =SUMPRODUCT(B7:B37,E7:E37) -> 6313037.898 | F39: =SUMPRODUCT(B7:B37,F7:F37) -> 88490954.14
A40: Теплота згоряння (середньозважене значення за місяць), МДж/м³ | C40: =C39/C38 -> 37.92161332 | D40: =D39/D38 -> 37.92217813 | E40: =E39/E38 -> 37.92168033 | F40: =F39/F38 -> 37.92177433
A41: Теплота згоряння (середньозважене значення за місяць), ккал/м³ | C41: =C40*238.8459 -> 9057.421863 | D41: =D40*238.8459 -> 9057.556766 | E41: =E40*238.8459 -> 9057.437867 | F41: =F40*238.8459 -> 9057.460319
A42: Теплота згоряння (середньозважене значення за місяць), кВт*год./м³ | C42: =C40/3.6 -> 10.53378148 | D42: =D40/3.6 -> 10.53393837 | E42: =E40/3.6 -> 10.53380009 | F42: =F40/3.6 -> 10.5338262

Sheet додаток
A2: Додаток до Паспорту фізико-хімічних показників природного газу №652
A4: Область | B4: ГРС, прямий споживач | C4: Cередньозважене значення вищої теплоти згоряння
C5: МДж/м³ | D5: ккал/м³ | E5: кВт*год./м³
A6: Луганська область | B6: ГРС м.Попасна | C6: 37.92 | D6: 9057 | E6: 10.53
B7: ГРС смт. Золоте | C7: 37.92 | D7: 9058 | E7: 10.53
B8: ГРСс. Мирна Долина | C8: 37.92 | D8: 9057 | E8: 10.53
A9: Середньозважене значення вищої теплоти згоряння по маршруту №652 | C9: 37.92 | D9: 9057 | E9: 10.53
A13: Начальник управління Сєвєродонецького ЛВУМГ Головко Ю.О.
A14: Підрозділу підприємства, якому підпорядкована лабораторія | D14: прізвище | E14: підпис | F14: дата
A15: Інженер ІІ кат.вимірювальної хіміко-аналітичної лабораторії Єрьоменко М.О.
A16: Лабораторія, де здійснювалось вимірювання газу | D16: прізвище | E16: підпис | F16: дата
A17: Начальник служби метрології Ісаєв В.С.
A18: Підрозділу, відповідального за облік газу за маршрутом | D18: прізвище | E18: підпис | F18: дата
F24: дата
F26: дата
F28: дата

Sheet variablesList (hidden)
A1: 3 | B1: x:\gaysin | C1: 10, 11, 24, 25, 127, 128, 132, 180, 207, 215 | D1: x:\
B2: x:\Illinci
B3: x:\Talne
